bitfinex/quotes_SOLUSD_20240625
["timestamp","ask_amount","ask_price","bid_price","bid_amount"]
[1719307577067,0.17,135.15,135.12,9.23]
[1719307577569,100.0,135.16,135.11,45.0]
[1719307577864,100.0,135.16,135.14,9.23]
[1719307578230,100.0,135.16,135.11,45.0]
[1719307578858,100.0,135.16,135.13,9.23]
[1719307579034,100.0,135.16,135.14,45.0]
[1719307580557,200.0,135.18,135.14,54.23]
[1719307583146,200.0,135.18,135.14,45.0]
[1719307583147,100.0,135.16,135.14,45.0]
[1719307584987,0.17,135.15,135.01,22.26]
[1719307585280,0.17,135.15,135.11,9.23]
[1719307585487,0.17,135.15,135.12,9.23]
[1719307585779,100.0,135.14,135.03,36.92]
[1719307585956,100.0,135.14,135.1,9.23]
[1719307586356,100.0,135.14,135.03,36.92]
[1719307586559,100.0,135.14,135.1,9.23]
[1719307586779,100.0,135.14,135.11,45.0]
[1719307587461,100.0,135.14,135.11,54.23]
[1719307587871,100.0,135.14,135.11,45.0]
[1719307588075,100.0,135.14,135.11,54.23]
[1719307590592,100.0,135.14,135.11,45.0]
[1719307590778,200.0,135.14,135.03,36.92]
[1719307591087,0.17,135.13,135.1,9.23]
[1719307591994,200.0,135.18,135.12,9.23]
[1719307592153,200.0,135.18,135.1,9.23]
[1719307592154,200.0,135.18,135.15,9.23]
[1719307593585,200.0,135.18,135.1,36.92]
[1719307593754,200.0,135.18,135.14,9.23]
[1719307594170,200.0,135.18,135.15,45.0]
[1719307595158,0.34,135.17,135.14,9.23]
[1719307595569,0.34,135.17,135.04,0.34]
[1719307595776,0.34,135.17,135.1,36.92]
[1719307595973,100.0,135.16,135.13,9.23]
[1719307596183,100.0,135.16,135.04,45.34]
[1719307596184,200.0,135.16,135.04,45.34]
[1719307596359,200.0,135.16,135.12,9.23]
[1719307596566,100.0,135.16,135.13,54.23]
[1719307597265,100.0,135.16,135.14,9.23]
[1719307598569,100.0,135.16,135.13,54.23]
[1719307601098,100.0,135.16,135.14,9.23]
[1719307601807,200.0,135.2,135.15,54.23]
[1719307601977,200.0,135.2,135.17,9.23]
[1719307602400,100.0,135.2,135.17,9.23]
[1719307605504,100.0,135.16,135.05,20.0]
[1719307605798,100.0,135.16,135.1,36.92]
[1719307606005,100.0,135.14,135.04,20.0]
[1719307606222,100.0,135.14,135.13,9.23]
[1719307606418,100.0,135.14,135.04,20.0]
[1719307606724,100.0,135.14,135.11,9.23]
[1719307607730,100.0,135.14,135.12,9.23]
[1719307608026,100.0,135.14,135.12,54.23]
[1719307612611,100.0,135.14,135.12,45.0]
[1719307612812,100.0,135.14,135.12,54.23]
[1719307614605,200.0,135.14,135.04,20.0]
[1719307614923,200.0,135.14,135.1,9.23]
[1719307615120,200.0,135.14,135.11,45.0]
[1719307615307,100.0,135.14,135.11,54.23]
[1719307616704,100.0,135.14,135.11,45.0]
[1719307617024,100.0,135.14,135.11,54.23]
[1719307617617,100.0,135.14,135.11,45.0]
[1719307619601,100.0,135.14,135.11,54.23]
[1719307620113,100.0,135.14,135.12,9.23]
[1719307620627,200.0,135.16,135.13,9.23]
[1719307620796,200.0,135.16,135.11,45.0]
[1719307620797,100.0,135.16,135.14,45.0]
[1719307621002,100.0,135.16,135.14,54.23]
[1719307621213,100.0,135.16,135.14,45.0]
[1719307622224,100.0,135.18,135.15,9.23]
[1719307622407,200.0,135.18,135.16,45.0]
[1719307622608,200.0,135.18,135.15,9.23]
[1719307623525,100.0,135.18,135.15,9.23]
[1719307623728,100.0,135.2,135.16,45.0]
[1719307623924,100.0,135.2,135.17,9.23]
[1719307625632,100.0,135.2,135.16,45.0]
[1719307626108,100.0,135.2,135.17,9.23]
[1719307627526,100.0,135.2,135.18,45.0]
[1719307629438,100.0,135.18,135.1,36.92]
[1719307629740,100.0,135.2,135.11,65.34]
[1719307629916,100.0,135.2,135.17,9.23]
[1719307630117,100.0,135.2,135.18,45.0]
[1719307632746,100.0,135.18,135.11,20.0]
[1719307633033,100.0,135.18,135.17,9.23]
[1719307633345,100.0,135.18,135.16,9.23]
[1719307634424,100.0,135.18,135.12,45.0]
[1719307634624,100.0,135.18,135.16,9.23]
[1719307635522,100.0,135.18,135.12,45.0]
[1719307635728,100.0,135.18,135.16,9.23]
[1719307636125,100.0,135.18,135.17,9.23]
[1719307638242,100.0,135.18,135.12,45.0]
[1719307638642,100.0,135.18,135.17,9.23]
[1719307638823,100.0,135.18,135.16,9.23]
[1719307639639,100.0,135.16,135.14,9.23]
[1719307639873,100.0,135.16,135.15,45.0]
[1719307640631,100.0,135.16,135.14,9.23]
[1719307641237,100.0,135.16,135.15,9.23]
[1719307641438,100.0,135.18,135.15,9.23]
[1719307641640,0.34,135.19,135.16,45.0]
[1719307641833,0.34,135.19,135.17,9.23]
[1719307642323,0.34,135.19,135.16,54.23]
[1719307642531,200.0,135.2,135.16,54.23]
[1719307642739,100.0,135.2,135.17,9.23]
[1719307644042,100.0,135.2,135.18,45.0]
[1719307644347,100.0,135.2,135.18,54.23]
[1719307646941,100.0,135.2,135.18,45.0]
[1719307648870,200.0,135.2,135.17,9.23]
[1719307649352,100.0,135.18,135.16,9.23]
[1719307649656,100.0,135.18,135.15,9.23]
[1719307649831,100.0,135.18,135.14,9.23]
[1719307650027,100.0,135.18,135.15,45.0]
[1719307650231,200.0,135.18,135.15,45.0]
[1719307650437,100.0,135.16,135.14,9.23]
[1719307653471,100.0,135.16,135.15,9.23]
[1719307653647,100.17,135.19,135.15,9.23]
[1719307653849,100.17,135.19,135.16,54.23]
[1719307654334,100.17,135.19,135.16,45.0]
[1719307654534,100.17,135.19,135.16,54.23]
[1719307656060,100.17,135.19,135.16,45.0]
[1719307656966,100.0,135.17,135.15,9.23]
[1719307657343,100.0,135.17,135.1,36.92]
[1719307657544,100.0,135.17,135.15,9.23]
[1719307659569,100.17,135.19,135.11,45.0]
[1719307659754,100.17,135.19,135.17,9.23]
[1719307660476,100.0,135.24,135.18,9.23]
[1719307660644,100.0,135.24,135.17,9.23]
[1719307660645,100.0,135.24,135.22,9.23]
[1719307661363,100.0,135.23,135.22,9.23]
[1719307662343,100.0,135.24,135.22,9.23]
[1719307662668,100.0,135.25,135.22,9.23]
[1719307663252,100.0,135.25,135.23,9.23]
[1719307666357,100.0,135.25,135.22,9.23]
[1719307666575,100.0,135.25,135.11,67.26]
[1719307666772,100.0,135.25,135.22,9.23]
[1719307667481,100.0,135.25,135.23,9.23]
[1719307667986,100.0,135.25,135.17,36.92]
[1719307667987,109.00359818,135.3,135.24,9.23]
[1719307668173,100.0,135.3,135.25,45.0]
[1719307668355,100.0,135.3,135.29,9.23]
[1719307668552,100.0,135.35,135.29,54.23]
[1719307668783,100.0,135.35,135.25,45.0]
[1719307668784,100.0,135.35,135.33,9.23]
[1719307669164,200.0,135.35,135.33,9.23]
[1719307669355,200.0,135.35,135.32,9.23]
[1719307669925,100.0,135.33,135.32,9.23]
[1719307670089,100.0,135.33,135.32,54.23]
[1719307670687,100.0,135.31,135.18,22.26]
[1719307670872,100.0,135.31,135.3,9.23]
[1719307673179,100.0,135.36,135.24,36.92]
[1719307673363,100.0,135.36,135.33,9.23]
[1719307674387,151.95157406,135.44,135.35,9.23]
[1719307674591,151.95157406,135.44,135.31,36.92]
[1719307674592,100.0,135.41,135.37,9.23]
[1719307674766,100.0,135.41,135.38,54.23]
[1719307675387,100.0,135.41,135.38,45.0]
[1719307676099,100.0,135.38,135.25,20.34]
[1719307676387,100.0,135.38,135.35,9.23]
[1719307676583,100.0,135.38,135.26,65.0]
[1719307676788,100.0,135.38,135.3,27.56]
[1719307676990,100.0,135.38,135.31,45.0]
[1719307680878,100.0,135.36,135.31,45.0]
[1719307682483,100.0,135.36,135.3,27.56]
[1719307682883,100.0,135.34,135.26,20.0]
[1719307683081,100.0,135.34,135.24,20.0]
[1719307683276,100.0,135.34,135.23,20.0]
[1719307683277,100.0,135.32,135.23,20.0]
[1719307683495,100.0,135.32,135.23,47.56]
[1719307684105,100.0,135.32,135.23,27.56]
[1719307685409,100.0,135.34,135.24,20.0]
[1719307685713,100.0,135.34,135.26,27.56]
[1719307686008,100.0,135.36,135.29,27.56]
[1719307686393,100.0,135.36,135.3,47.57793193]
[1719307686590,100.0,135.36,135.3,45.0]
[1719307686791,100.0,135.34,135.3,45.0]
[1719307691392,100.0,135.37,135.3,45.0]
[1719307692731,100.0,135.35,135.3,45.0]
[1719307692890,100.0,135.33,135.3,45.0]
[1719307697004,100.0,135.31,135.3,45.0]
[1719307697408,100.0,135.31,135.24,20.0]
[1719307698228,100.0,135.31,135.23,27.56]
[1719307698393,100.0,135.31,135.23,33.34384341]
[1719307700928,100.0,135.31,135.25,45.0]
[1719307705431,100.0,135.29,135.21,27.56]
[1719307705596,100.0,135.29,135.22,20.0]
[1719307707226,100.0,135.29,135.23,45.0]
[1719307707926,100.0,135.31,135.24,27.56]
[1719307708231,100.17,135.32,135.25,45.0]
[1719307708436,100.0,135.31,135.25,45.0]
[1719307709516,100.17,135.32,135.25,45.0]
[1719307709838,100.0,135.31,135.25,45.0]
[1719307711320,100.0,135.32,135.25,45.0]
[1719307711521,100.0,135.32,135.26,1.47976226]
[1719307711712,100.0,135.32,135.25,45.0]
[1719307711713,100.0,135.33,135.27,27.56]
[1719307711912,100.0,135.38,135.28,45.0]
[1719307712242,200.0,135.38,135.28,45.0]
[1719307713330,100.0,135.36,135.28,45.0]
[1719307713507,200.0,135.36,135.28,45.0]
[1719307714212,100.0,135.34,135.28,45.0]
[1719307718923,100.0,135.32,135.26,45.0]
[1719307724843,100.0,135.34,135.26,45.0]
[1719307726042,100.0,135.32,135.26,45.0]
[1719307728644,100.0,135.32,135.3,9.19]
[1719307730525,100.0,135.32,135.31,45.0]
[1719307730726,100.0,135.32,135.3,9.19]
[1719307730940,100.0,135.32,135.31,45.0]
[1719307733029,100.0,135.32,135.3,45.0]
[1719307733827,100.0,135.34,135.3,45.0]
[1719307734028,100.0,135.36,135.31,9.19]
[1719307734243,100.0,135.36,135.32,45.0]
[1719307734931,100.0,135.34,135.32,45.0]
[1719307735452,100.0,135.38,135.32,45.0]
[1719307735453,100.0,135.36,135.32,45.0]
[1719307735839,100.0,135.34,135.32,45.0]
[1719307737350,100.0,135.34,135.3,9.19]
[1719307737540,100.0,135.34,135.31,45.0]
[1719307737848,100.0,135.32,135.31,45.0]
[1719307738240,100.0,135.32,135.3,45.0]
[1719307738656,100.0,135.32,135.25,20.0]
[1719307738851,100.0,135.3,135.28,9.19]
[1719307739355,100.0,135.3,135.27,9.19]
[1719307739951,100.0,135.3,135.28,45.0]
[1719307743156,100.0,135.3,135.21,20.0]
[1719307743344,100.0,135.3,135.26,9.19]
[1719307744060,100.0,135.3,135.27,9.19]
[1719307744535,100.0,135.32,135.28,45.0]
[1719307744926,100.0,135.32,135.28,54.19]
[1719307746338,200.0,135.35,135.29,9.19]
[1719307746548,200.0,135.35,135.28,45.0]
[1719307746549,100.0,135.37,135.32,9.19]
[1719307746754,109.19,135.37,135.33,45.0]
[1719307747533,100.0,135.35,135.33,45.0]
[1719307747937,209.19,135.37,135.33,45.0]
[1719307749349,200.0,135.37,135.33,45.0]
[1719307749551,100.0,135.35,135.33,45.0]
[1719307751033,100.0,135.35,135.32,45.0]
[1719307751977,100.0,135.35,135.32,54.19]
[1719307753664,100.0,135.32,135.29,9.19]
[1719307753961,100.0,135.32,135.3,54.19]
[1719307754642,100.0,135.32,135.3,45.0]
[1719307756863,109.19,135.34,135.3,45.0]
[1719307757066,100.0,135.34,135.31,9.19]
[1719307757366,100.0,135.34,135.32,45.0]
[1719307761394,100.0,135.34,135.31,45.0]
[1719307761551,100.0,135.34,135.31,54.19]
[1719307762070,100.0,135.34,135.31,45.0]
[1719307762559,100.0,135.32,135.31,45.0]
[1719307762960,100.0,135.32,135.3,45.0]
[1719307763657,100.0,135.32,135.3,54.19]
[1719307764588,100.0,135.32,135.3,45.0]
[1719307765773,100.0,135.32,135.3,54.19]
[1719307765974,100.0,135.32,135.3,45.0]
[1719307766497,100.0,135.32,135.3,54.19]
[1719307768278,100.0,135.32,135.3,45.0]
[1719307770293,100.0,135.32,135.3,54.19]
[1719307771982,100.0,135.34,135.31,9.19]
[1719307772181,100.0,135.34,135.32,54.19]
[1719307772388,100.0,135.36,135.33,9.19]
[1719307772573,100.0,135.36,135.3,45.0]
[1719307772574,100.0,135.38,135.34,54.19]
[1719307772775,100.0,135.38,135.35,9.19]
[1719307772979,100.0,135.38,135.36,45.0]
[1719307775870,100.0,135.41,135.36,45.0]
[1719307776076,100.0,135.41,135.37,9.19]
[1719307776388,100.0,135.41,135.38,45.0]
[1719307776762,100.0,135.42,135.38,45.0]
[1719307777480,100.0,135.4,135.38,45.0]
[1719307778284,100.0,135.42,135.38,54.19]
[1719307779286,100.0,135.44,135.39,9.19]
[1719307779473,100.0,135.44,135.4,45.0]
[1719307779667,209.19,135.44,135.4,45.0]
[1719307781585,358.94391974,135.45,135.4,9.19]
[1719307781791,358.94391974,135.45,135.41,54.19]
[1719307781966,358.94391974,135.45,135.42,9.19]
[1719307782286,0.04391974,135.45,135.44,9.19]
[1719307782533,0.04391974,135.45,135.44,54.19]
[1719307783668,0.04391974,135.45,135.44,45.0]
[1719307784876,100.04391974,135.45,135.44,45.0]
[1719307785281,100.0,135.43,135.31,74.086088]
[1719307785478,100.0,135.43,135.4,9.19]
[1719307786672,100.0,135.43,135.41,45.0]
[1719307786891,100.04391974,135.45,135.42,9.19]
[1719307787086,100.04391974,135.45,135.43,45.0]
[1719307788387,100.04391974,135.45,135.43,54.19]
[1719307790291,100.04391974,135.45,135.43,45.0]
[1719307792886,0.04391974,135.45,135.43,45.0]
[1719307793205,0.04391974,135.45,135.44,9.19]
[1719307793382,0.04391974,135.45,135.44,54.19]
[1719307795607,25.0,135.56,135.44,90.95]
[1719307795608,100.0,135.56,135.44,90.95]
[1719307795781,116.5668,135.56,135.5,9.19]
[1719307795977,100.0,135.54,135.5,9.19]
[1719307796208,100.0,135.55,135.51,45.0]
[1719307796513,109.19,135.55,135.51,45.0]
[1719307796810,100.0,135.53,135.51,45.0]
[1719307797114,100.0,135.5,135.42,27.49]
[1719307797292,100.0,135.5,135.43,65.34]
[1719307797610,107.67058392,135.55,135.43,65.34]
[1719307797912,100.0,135.55,135.45,27.49]
[1719307798290,100.0,135.53,135.46,45.0]
[1719307798688,100.0,135.51,135.46,45.0]
[1719307798889,100.0,135.49,135.46,45.0]
[1719307799686,100.0,135.49,135.43,20.0]
[1719307799984,100.0,135.47,135.41,27.49]
[1719307800200,100.0,135.47,135.38,56.97108617]
[1719307800401,100.0,135.47,135.38,27.49]
[1719307801400,100.0,135.47,135.39,20.0]
[1719307801617,100.0,135.47,135.33,48.48973125]
[1719307801618,100.0,135.39,135.31,1.70959501]
[1719307802113,100.0,135.39,135.29,27.49]
[1719307802490,100.0,135.37,135.29,27.49]
[1719307802886,100.0,135.39,135.29,27.49]
[1719307803498,100.0,135.4,135.29,27.49]
[1719307803917,100.0,135.42,135.32,27.49]
[1719307805227,100.0,135.42,135.33,45.34]
[1719307810430,100.0,135.39,135.33,45.0]
[1719307811020,100.0,135.39,135.29,27.49]
[1719307811227,100.0,135.39,135.3,20.0]
[1719307812236,100.0,135.39,135.31,45.17]
[1719307812406,100.0,135.39,135.31,45.0]
[1719307813406,100.0,135.37,135.31,45.0]
[1719307813606,27.49,135.42,135.23,22.22]
[1719307813607,100.0,135.35,135.23,22.22]
[1719307813907,100.0,135.35,135.24,49.71]
[1719307814315,100.0,135.33,135.24,27.49]
[1719307814703,100.0,135.33,135.24,22.22]
[1719307815010,100.0,135.33,135.23,27.49]
[1719307815813,100.0,135.31,135.22,55.6092008]
[1719307816129,100.0,135.31,135.22,49.71]
[1719307816427,100.0,135.33,135.23,42.22]
[1719307817323,100.0,135.33,135.24,45.34]
[1719307817535,100.0,135.33,135.25,20.0]
[1719307817829,100.0,135.33,135.26,45.34]
[1719307818205,100.0,135.33,135.26,45.17]
[1719307818606,100.0,135.35,135.26,45.17]
[1719307821217,100.0,135.35,135.27,20.17]
[1719307821526,100.0,135.35,135.28,45.17]
[1719307821906,100.0,135.35,135.28,45.0]
[1719307823802,100.0,135.33,135.28,45.0]
[1719307825330,100.0,135.33,135.24,27.49]
[1719307825529,100.0,135.33,135.25,20.0]
[1719307826833,100.0,135.33,135.26,45.0]
[1719307827335,100.0,135.33,135.25,20.0]
[1719307827336,100.0,135.31,135.25,20.0]
[1719307828112,100.0,135.31,135.21,33.26822866]
[1719307828113,100.0,135.31,135.22,20.0]
[1719307830337,100.0,135.31,135.23,45.0]
[1719307830515,100.0,135.31,135.24,20.0]
[1719307830717,100.0,135.29,135.24,20.0]
[1719307830923,100.0,135.29,135.21,20.0]
[1719307831610,100.0,135.29,135.19,42.22]
[1719307831819,100.0,135.29,135.2,27.66]
[1719307832019,100.0,135.29,135.21,65.17]
[1719307832220,100.0,135.29,135.22,0.17]
[1719307832935,100.0,135.29,135.21,65.17]
[1719307833116,100.0,135.29,135.22,0.17]
[1719307833840,100.0,135.27,135.21,20.0]
[1719307834043,100.0,135.27,135.19,20.0]
[1719307835133,100.0,135.27,135.18,27.49]
[1719307836425,100.0,135.27,135.19,20.17]
[1719307836942,100.0,135.27,135.19,0.17]
[1719307837130,100.0,135.27,135.19,45.34]
[1719307838029,100.0,135.29,135.19,45.34]
[1719307838641,100.0,135.31,135.2,69.71]
[1719307838820,100.0,135.31,135.21,45.34]
[1719307839144,100.0,135.29,135.22,20.0]
[1719307839329,100.0,135.29,135.23,45.17]
[1719307839643,100.0,135.36,135.24,49.88]
[1719307839842,100.0,135.36,135.25,65.17]
[1719307840149,100.0,135.36,135.26,0.17]
[1719307843046,100.0,135.33,135.25,20.0]
[1719307844045,100.0,135.31,135.25,20.0]
[1719307844228,100.0,135.31,135.26,45.0]
[1719307846550,100.0,135.35,135.26,45.0]
[1719307846727,0.17,135.34,135.26,45.0]
[1719307847845,100.0,135.33,135.26,45.0]
[1719307851939,100.0,135.35,135.27,20.17]
[1719307852140,100.0,135.35,135.28,45.0]
[1719307853552,115.00430431,135.38,135.29,0.17]
[1719307854136,115.00430431,135.38,135.29,0.34]
[1719307854335,100.0,135.38,135.29,4.57436187]
[1719307854534,100.0,135.38,135.3,45.0]
[1719307854732,100.0,135.4,135.31,4.88649808]
[1719307854934,100.0,135.4,135.32,45.0]
[1719307855133,100.0,135.4,135.33,4.54582616]
[1719307855334,100.0,135.4,135.34,45.0]
[1719307855553,100.0,135.4,135.35,4.54515444]
[1719307855852,100.0,135.4,135.36,45.0]
[1719307861843,100.0,135.38,135.36,45.0]
[1719307862368,115.00430431,135.42,135.36,45.0]
[1719307862369,100.0,135.4,135.36,45.0]
[1719307863859,100.0,135.37,135.36,45.0]
[1719307864367,100.0,135.35,135.27,280.18816154]
[1719307864547,100.0,135.35,135.28,45.17]
[1719307864860,100.0,135.35,135.31,9.19]
[1719307865095,100.0,135.35,135.3,9.19]
[1719307865436,100.0,135.35,135.27,5.88816154]
[1719307865641,109.19,135.37,135.32,9.19]
[1719307866254,109.19,135.37,135.33,45.0]
[1719307866744,109.19,135.39,135.33,54.19]
[1719307866955,100.0,135.39,135.34,9.19]
[1719307867150,109.19,135.39,135.35,45.0]
[1719307868356,100.0,135.34,135.33,9.19]
[1719307868565,100.0,135.34,135.21,25.0]
[1719307868566,100.0,135.32,135.19,25.0]
[1719307868740,100.0,135.32,135.23,27.58]
[1719307869268,100.0,135.35,135.23,27.58]
[1719307869497,100.0,135.35,135.24,22.22]
[1719307870271,100.0,135.35,135.25,45.17]
[1719307870472,100.0,135.35,135.26,20.0]
[1719307870670,100.0,135.35,135.27,45.34]
[1719307871254,100.0,135.35,135.27,45.17]
[1719307872566,100.0,135.35,135.28,0.17]
[1719307873279,100.0,135.35,135.27,45.17]
[1719307873445,100.0,135.33,135.27,45.17]
[1719307874674,100.0,135.33,135.24,27.58]
[1719307874875,100.0,135.33,135.25,20.0]
[1719307875379,100.0,135.33,135.22,20.0]
[1719307875757,100.0,135.33,135.22,42.22]
[1719307876055,100.0,135.33,135.22,48.12889242]
[1719307876256,100.0,135.33,135.23,0.17]
[1719307876646,100.0,135.33,135.23,45.34]
[1719307876853,100.0,135.31,135.24,20.0]
[1719307877054,100.0,135.31,135.25,45.0]
[1719307877854,100.0,135.33,135.25,45.0]
[1719307878183,100.0,135.35,135.26,0.34]
[1719307878960,100.0,135.35,135.26,20.34]
[1719307879169,100.0,135.35,135.27,45.0]
[1719307879481,100.0,135.35,135.28,0.34]
[1719307882875,100.0,135.35,135.28,0.34]
[1719307888786,109.19,135.35,135.3,9.19]
[1719307888986,109.19,135.35,135.31,45.0]
[1719307889477,100.0,135.35,135.31,45.0]
[1719307889688,109.19,135.35,135.31,45.0]
[1719307889878,100.0,135.35,135.31,45.0]
[1719307890060,109.19,135.35,135.31,45.0]
[1719307891187,100.0,135.35,135.31,45.0]
[1719307891363,7.66573183,135.38,135.33,9.19]
[1719307891566,107.3851,135.41,135.34,45.0]
[1719307891859,107.3851,135.41,135.34,54.19]
[1719307892078,9.19,135.39,135.34,54.19]
[1719307892663,100.0,135.41,135.35,9.19]
[1719307892862,109.19,135.41,135.36,54.19]
[1719307894365,109.19,135.41,135.36,45.0]
[1719307896080,100.0,135.41,135.36,45.0]
[1719307896283,100.0,135.41,135.36,54.19]
[1719307896464,109.19,135.43,135.37,9.19]
[1719307896664,109.19,135.43,135.38,54.19]
[1719307896875,109.19,135.43,135.39,45.0]
[1719307897075,120.88426855,135.45,135.39,45.0]
[1719307897076,9.19,135.44,135.39,54.19]
[1719307898094,213.50146855,135.45,135.39,54.19]
[1719307898276,9.19,135.44,135.39,54.19]
[1719307898469,109.19,135.43,135.39,45.0]
[1719307899419,100.0,135.47,135.39,45.0]
[1719307899586,109.19,135.47,135.42,9.19]
[1719307899894,109.19,135.47,135.43,45.0]
[1719307900392,109.19,135.49,135.43,54.19]
[1719307901003,9.19,135.48,135.43,54.19]
[1719307901502,9.19,135.48,135.43,45.0]
[1719307902574,100.0,135.46,135.43,45.0]
[1719307903265,100.0,135.46,135.41,9.19]
[1719307903594,9.19,135.44,135.39,9.19]
[1719307903775,9.19,135.45,135.39,9.19]
[1719307904269,9.19,135.45,135.4,9.19]
[1719307904471,109.19,135.46,135.4,9.19]
[1719307904698,109.19,135.46,135.41,54.19]
[1719307904868,109.19,135.46,135.41,45.0]
[1719307905070,109.19,135.46,135.41,54.19]
[1719307905674,100.0,135.46,135.41,54.19]
[1719307905876,109.19,135.46,135.41,54.19]
[1719307906072,100.0,135.46,135.41,54.19]
[1719307906491,9.19,135.48,135.43,9.19]
[1719307906697,109.19,135.49,135.44,45.0]
[1719307906889,116.85591667,135.49,135.44,45.0]
[1719307907073,9.19,135.48,135.44,45.0]
[1719307908374,9.19,135.48,135.43,45.0]
[1719307908700,109.19,135.46,135.43,45.0]
[1719307908880,109.19,135.46,135.42,45.0]
[1719307909273,100.0,135.46,135.42,45.0]
[1719307909475,9.19,135.47,135.42,45.0]
[1719307909705,109.19,135.48,135.42,54.19]
[1719307909886,100.0,135.48,135.42,54.19]
[1719307910092,109.19,135.48,135.42,54.19]
[1719307911405,100.0,135.48,135.42,54.19]
[1719307911579,9.19,135.47,135.42,54.19]
[1719307911780,109.19,135.48,135.43,9.19]
[1719307911982,109.19,135.48,135.44,45.0]
[1719307914605,9.19,135.47,135.44,45.0]
[1719307914899,9.19,135.47,135.43,45.0]
[1719307915306,109.19,135.46,135.43,45.0]
[1719307915487,100.0,135.46,135.37,5.80371637]
[1719307915690,100.0,135.46,135.38,65.34]
[1719307915691,9.19,135.45,135.38,65.34]
[1719307915882,100.0,135.44,135.38,20.0]
[1719307916082,100.0,135.44,135.4,9.19]
[1719307916302,100.0,135.46,135.4,9.19]
[1719307916506,9.19,135.45,135.4,9.19]
[1719307917301,109.19,135.46,135.41,45.0]
[1719307918487,100.0,135.48,135.41,54.19]
[1719307918805,9.19,135.47,135.42,9.19]
[1719307919116,9.19,135.47,135.43,45.0]